fUSD/lending_fUSD_20250602
["ID","MTS","AMOUNT","RATE_DAILY","PERIOD"]
[363743926,1748857850819,-434.545005,0.000199,7]
[363743927,1748857850830,-12500.0,0.000199,2]
[363743928,1748857850839,-951.77605371,0.000199,2]
[363743929,1748857850849,-376.9157661,0.000199,2]
[363743930,1748857850859,-5800.0,0.000199,2]
[363743931,1748857850868,-12500.0,0.000199,2]
[363743932,1748857850879,-1000.0,0.000199,2]
[363743933,1748857850890,-700.0,0.000199,7]
[363743934,1748857850901,-158.23303637,0.000199,2]
[363743935,1748857850912,-188.961844,0.000199,7]
[363743936,1748857850923,-151.0,0.000199,2]
[363743937,1748857850933,-4008.94548542,0.000199,2]
[363743938,1748857850942,-160.79232204,0.000199,2]
[363743939,1748857850953,-6416.77509855,0.000199,2]
[363743940,1748857850965,-7659.3099123,0.000199,2]
[363743941,1748857850975,-500.0,0.00019918,2]
[363743942,1748857850984,-500.0,0.00019918,2]
[363743943,1748857850994,-1985.0,0.00019918,2]
[363743944,1748857851004,-205.35777009,0.00019918,2]
[363743945,1748857851014,-150.0,0.00019918,2]
[363743946,1748857851024,-500.0,0.00019918,2]
[363743947,1748857851034,-254.50275381,0.00019918,2]
[363743948,1748857851044,-202.55148129,0.00019918,2]
[363743949,1748857851054,-500.0,0.00019918,2]
[363743950,1748857851064,-500.0,0.00019918,2]
[363743951,1748857851074,-500.0,0.00019918,2]
[363743952,1748857851084,-152.62425417,0.00019918,2]
[363743953,1748857851094,-150.0,0.00019918,2]
[363743954,1748857851103,-239.20030911,0.00019918,2]
[363743955,1748857851112,-500.0,0.00019918,2]
[363743956,1748857851123,-500.0,0.00019918,2]
[363743957,1748857851133,-500.0,0.00019918,2]
[363743958,1748857851143,-150.0,0.00019918,2]
[363743959,1748857851156,-206.54494209,0.00019918,2]
[363743960,1748857851165,-150.0,0.00019918,2]
[363743961,1748857851176,-500.0,0.00019918,2]
[363743962,1748857851186,-500.0,0.00019918,2]
[363743963,1748857851197,-151.0,0.00019918,2]
[363743964,1748857851207,-151.0,0.00019918,2]
[363743965,1748857851221,-262.912217,0.00019918,2]
[363743966,1748857851231,-262.912217,0.00019918,2]
[363743967,1748857851243,-151.0,0.00019918,2]
[363743968,1748857851253,-151.0,0.00019918,2]
[363743969,1748857851263,-181.53137,0.00019918,2]
[363743970,1748857851272,-181.53137,0.00019918,2]
[363743971,1748857851282,-151.0,0.00019918,2]
[363743972,1748857851292,-151.0,0.00019918,2]
[363743973,1748857851302,-151.0,0.00019918,2]
[363743974,1748857851312,-151.0,0.00019918,2]
[363743975,1748857851322,-151.0,0.00019918,2]
[363743976,1748857851332,-167.955462,0.00019918,2]
[363743977,1748857851342,-151.0,0.00019918,2]
[363743978,1748857851352,-151.0,0.00019918,2]
[363743979,1748857851362,-1765.120832,0.00019918,2]
[363743980,1748857851372,-1765.120832,0.00019918,2]
[363743981,1748857851382,-2562.247951,0.00019918,2]
[363743982,1748857851392,-2562.247951,0.00019918,2]
[363743983,1748857851402,-151.0,0.00019918,2]
[363743984,1748857851412,-151.0,0.00019918,2]
[363743985,1748857851422,-335.06572953,0.00019921,2]
[363743986,1748857851432,-1000.0,0.00019921,2]
[363743987,1748857851442,-500.0,0.00019921,2]
[363743988,1748857851452,-1000.0,0.00019921,2]
[363743989,1748857851463,-1000.0,0.00019921,2]
[363743990,1748857851474,-396.269665,0.00019921,2]
[363743991,1748857851484,-396.269665,0.00019921,2]
[363743992,1748857851494,-151.0,0.00019921,2]
[363743993,1748857851504,-214.28705,0.00019921,2]
[363743994,1748857851515,-151.0,0.00019921,2]
[363743995,1748857851525,-151.0,0.00019936,2]
[363743996,1748857851535,-151.0,0.00019936,2]
[363743997,1748857851545,-156.969709,0.00019936,2]
[363743998,1748857851555,-151.0,0.00019936,2]
[363743999,1748857851566,-151.0,0.00019936,2]
[363744000,1748857851576,-604.124976,0.00019936,2]
[363744001,1748857851586,-604.124976,0.00019936,2]
[363744002,1748857851596,-220.912477,0.00019936,2]
[363744003,1748857851606,-220.912477,0.00019936,2]
[363744004,1748857851617,-280.864726,0.00019936,2]
[363744005,1748857851627,-280.864726,0.00019936,2]
[363744006,1748857851638,-151.0,0.00019936,2]
[363744007,1748857851648,-449.419583,0.00019936,2]
[363744008,1748857851659,-449.419583,0.00019936,2]
[363744009,1748857851669,-1263.9110044,0.00019936,2]
[363744010,1748857851680,-1232.13968575,0.00019936,2]
[363744011,1748857851691,-162.21107944,0.00019936,2]
[363744012,1748857851701,-1941.56534051,0.00019936,2]
[363744013,1748857851712,-168.01978505,0.00019936,2]
[363744014,1748857851722,-168.65677843,0.00019936,2]
[363744015,1748857851732,-151.0,0.00019945,2]
[363744016,1748857851742,-151.0,0.00019945,2]
[363744017,1748857851753,-151.0,0.00019945,2]
[363744018,1748857851763,-164.888299,0.00019945,2]
[363744019,1748857851773,-151.0,0.00019945,2]
[363744020,1748857851783,-151.0,0.00019945,2]
[363744021,1748857851793,-151.0,0.00019945,2]
[363744022,1748857851804,-151.0,0.00019945,2]
[363744023,1748857851814,-500.0,0.00019945,2]
[363744024,1748857851824,-500.0,0.00019945,2]
[363744025,1748857851834,-1985.0,0.00019945,2]
[363744026,1748857851843,-207.96660487,0.00019945,2]
[363744027,1748857851854,-500.0,0.00019945,2]
[363744028,1748857851864,-500.0,0.00019945,2]
[363744029,1748857851875,-500.0,0.00019945,2]
[363744030,1748857851886,-500.0,0.00019945,2]
[363744031,1748857851896,-220.36528873,0.00019945,2]
[363744032,1748857851906,-500.0,0.00019945,2]
[363744033,1748857851916,-500.0,0.00019945,2]
[363744034,1748857851926,-500.0,0.00019945,2]
[363744035,1748857851937,-296.07597191,0.00019945,2]
[363744036,1748857851948,-212.61835403,0.00019945,2]
[363744037,1748857851959,-500.0,0.00019945,2]
[363744038,1748857851970,-500.0,0.00019945,2]
[363744039,1748857851980,-153.701462,0.00019967,5]
[363744040,1748857851991,-188.961844,0.00019967,5]
[363744041,1748857852001,-6416.77509831,0.00019969,2]
[363744042,1748857852012,-185.081108,0.00019969,2]
[363744043,1748857852023,-151.0,0.00019969,2]
[363744044,1748857852033,-151.0,0.00019969,2]
[363744045,1748857852042,-500.0,0.00019973,2]
[363744046,1748857852053,-500.0,0.00019973,2]
[363744047,1748857852063,-1985.0,0.00019973,2]
[363744048,1748857852074,-500.0,0.00019973,2]
[363744049,1748857852085,-500.0,0.00019973,2]
[363744050,1748857852101,-500.0,0.00019973,2]
[363744051,1748857852111,-500.0,0.00019973,2]
[363744052,1748857852121,-252.2698508,0.00019973,2]
[363744053,1748857852131,-500.0,0.00019973,2]
[363744054,1748857852141,-500.0,0.00019973,2]
[363744055,1748857852155,-500.0,0.00019973,2]
[363744056,1748857852165,-500.0,0.00019973,2]
[363744057,1748857852177,-160.36532622,0.00019973,2]
[363744058,1748857852190,-500.0,0.00019973,2]
[363744059,1748857852200,-589.346771,0.00019973,2]
[363744060,1748857852212,-589.346771,0.00019973,2]
[363744061,1748857852227,-157.27804,0.00019973,2]
[363744062,1748857852238,-170.779223,0.00019973,2]
[363744063,1748857852249,-170.779223,0.00019973,2]
[363744064,1748857852260,-151.0,0.00019973,2]
[363744065,1748857852271,-151.0,0.00019973,2]
[363744066,1748857852281,-151.0,0.00019973,2]
[363744067,1748857852493,-168.505625,0.00019973,2]
[363744068,1748857852504,-168.505625,0.00019973,2]
[363744069,1748857852514,-151.0,0.00019973,2]
[363744070,1748857852526,-151.0,0.00019973,2]
[363744071,1748857852536,-151.0,0.00019973,2]
[363744072,1748857852546,-298.963668,0.00019973,2]
[363744073,1748857852555,-151.0,0.00019973,2]
[363744074,1748857852565,-194.264785,0.00019973,2]
[363744075,1748857852579,-194.264785,0.00019973,2]
[363744076,1748857852590,-151.0,0.00019973,2]
[363744077,1748857852600,-698.166167,0.00019973,2]
[363744078,1748857852608,-698.166167,0.00019973,2]
[363744079,1748857852618,-882.587091,0.00019973,2]
[363744080,1748857852627,-882.587091,0.00019973,2]
[363744081,1748857852637,-500.0,0.0001998,2]
[363744082,1748857852646,-215.960077,0.00019985,2]
[363744083,1748857852656,-152.560831,0.00019985,2]
[363744084,1748857852666,-623.93,0.00019985,2]
[363744085,1748857852675,-300.0,0.00019985,2]
[363744086,1748857852685,-300.0,0.00019985,2]
[363744087,1748857852696,-300.0,0.00019985,2]
[363744088,1748857852705,-442.60614661,0.00019985,2]
[363744089,1748857852715,-730.54765802,0.00019985,2]
[363744090,1748857852724,-192.77793536,0.00019985,2]
[363744091,1748857852734,-151.0,0.00019986,2]
[363744092,1748857852743,-151.0,0.00019986,2]
[363744093,1748857852753,-151.0,0.00019986,2]
[363744094,1748857852763,-199.781702,0.00019986,2]
[363744095,1748857852773,-151.0,0.00019986,2]
[363744096,1748857852782,-151.0,0.00019986,2]
[363744097,1748857852792,-151.0,0.00019986,2]
[363744098,1748857852801,-151.0,0.00019986,2]
[363744099,1748857852811,-589.346771,0.00019986,2]
[363744100,1748857852820,-589.346771,0.00019986,2]
[363744101,1748857852830,-170.779223,0.00019986,2]
[363744102,1748857852839,-170.779223,0.00019986,2]
[363744103,1748857852849,-151.0,0.00019986,2]
[363744104,1748857852858,-151.0,0.00019986,2]
[363744105,1748857852868,-151.0,0.00019986,2]
[363744106,1748857852877,-156.176086,0.00019986,2]
[363744107,1748857852887,-205.823622,0.00019986,2]
[363744108,1748857852897,-168.505625,0.00019986,2]
[363744109,1748857852907,-168.505625,0.00019986,2]
[363744110,1748857852917,-151.0,0.00019986,2]
[363744111,1748857852926,-151.0,0.00019986,2]
[363744112,1748857852935,-151.0,0.00019986,2]
[363744113,1748857852945,-151.0,0.00019986,2]
[363744114,1748857852955,-151.0,0.00019986,2]
[363744115,1748857852965,-151.0,0.00019986,2]
[363744116,1748857852975,-151.0,0.00019986,2]
[363744117,1748857852985,-194.264785,0.00019986,2]
[363744118,1748857852994,-194.264785,0.00019986,2]
[363744119,1748857853004,-151.0,0.00019986,2]
[363744120,1748857853014,-151.0,0.00019986,2]
[363744121,1748857853023,-151.0,0.00019986,2]
[363744122,1748857853033,-151.0,0.00019986,2]
[363744123,1748857853043,-151.0,0.00019986,2]
[363744124,1748857853052,-151.0,0.00019986,2]
[363744125,1748857853061,-698.166167,0.00019986,2]
[363744126,1748857853071,-698.166167,0.00019986,2]
[363744127,1748857853080,-271.804503,0.00019986,2]
[363744128,1748857853090,-151.0,0.00019986,2]
[363744129,1748857853100,-604.124976,0.00019986,2]
[363744130,1748857853109,-604.124976,0.00019986,2]
[363744131,1748857853119,-604.124976,0.00019986,2]
[363744132,1748857853129,-604.124976,0.00019986,2]
[363744133,1748857853138,-262.912217,0.00019986,2]
[363744134,1748857853150,-262.912217,0.00019986,2]
[363744135,1748857853160,-882.587091,0.00019986,2]
[363744136,1748857853170,-262.912217,0.00019986,2]
[363744137,1748857853180,-262.912217,0.00019986,2]
[363744138,1748857853190,-882.587091,0.00019986,2]
[363744139,1748857853200,-220.912477,0.00019986,2]
[363744140,1748857853210,-220.912477,0.00019986,2]
[363744141,1748857853223,-220.912477,0.00019986,2]
[363744142,1748857853233,-220.912477,0.00019986,2]
[363744143,1748857853243,-151.0,0.00019986,2]
[363744144,1748857853252,-151.0,0.00019986,2]
[363744145,1748857853262,-280.864726,0.00019986,2]
[363744146,1748857853271,-280.864726,0.00019986,2]
[363744147,1748857853281,-151.0,0.00019986,2]
[363744148,1748857853291,-151.0,0.00019986,2]
[363744149,1748857853301,-151.0,0.00019986,2]
[363744150,1748857853310,-181.53137,0.00019986,2]
[363744151,1748857853320,-181.53137,0.00019986,2]
[363744152,1748857853330,-181.53137,0.00019986,2]
[363744153,1748857853339,-181.53137,0.00019986,2]
[363744154,1748857853349,-151.0,0.00019986,2]
[363744155,1748857853358,-449.419583,0.00019986,2]
[363744156,1748857853367,-449.419583,0.00019986,2]
[363744157,1748857853377,-449.419583,0.00019986,2]
[363744158,1748857853387,-449.419583,0.00019986,2]
[363744159,1748857853398,-151.0,0.00019986,2]
[363744160,1748857853407,-151.0,0.00019986,2]
[363744161,1748857853416,-151.0,0.00019986,2]
[363744162,1748857853425,-151.0,0.00019986,2]
[363744163,1748857853435,-151.0,0.00019986,2]
[363744164,1748857853444,-151.0,0.00019986,2]
[363744165,1748857853453,-151.0,0.00019986,2]
[363744166,1748857853463,-7965.3793508,0.00019986,2]
[363744167,1748857853474,-7936.8580004,0.00019986,2]
[363744168,1748857853484,-7908.33665,0.00019986,2]
[363744169,1748857853493,-7879.8152996,0.00019986,2]
[363744170,1748857853503,-151.0,0.00019986,2]
[363744171,1748857853514,-396.269665,0.00019986,2]
[363744172,1748857853524,-396.269665,0.00019986,2]
[363744173,1748857853534,-1765.120832,0.00019986,2]
[363744174,1748857853544,-1765.120832,0.00019986,2]
[363744175,1748857853555,-151.0,0.00019986,2]
[363744176,1748857853565,-2562.247951,0.00019986,2]
[363744177,1748857853575,-2562.247951,0.00019986,2]
[363744178,1748857853586,-5501.3605863,0.00019986,2]
[363744179,1748857853596,-5472.1084805,0.00019986,2]
[363744180,1748857853606,-5442.8563747,0.00019986,2]
[363744181,1748857853616,-5413.6042689,0.00019986,2]
[363744182,1748857853626,-151.0,0.00019986,2]
[363744183,1748857853636,-151.0,0.00019986,2]
[363744184,1748857853646,-151.0,0.00019986,2]
[363744185,1748857853657,-151.0,0.00019986,2]
[363744186,1748857853666,-556.9546692,0.00019986,2]
[363744187,1748857853676,-556.9546692,0.00019986,2]
[363744188,1748857853687,-556.9546692,0.00019986,2]
[363744189,1748857853698,-556.9546692,0.00019986,2]
[363744190,1748857853709,-76802.1782549,0.00019986,2]
[363744191,1748857853719,-76802.1782549,0.00019986,2]
[363744192,1748857853729,-76802.1782549,0.00019986,2]
[363744193,1748857853739,-151.0,0.00019986,2]
[363744194,1748857853749,-213.905305,0.00019986,2]
[363744195,1748857853759,-1053.36545669,0.00019988,2]
[363744196,1748857853769,-1559.66791457,0.0001999,2]
[363744197,1748857853780,-500.0,0.0001999,2]
[363744198,1748857853792,-192.77793536,0.0001999,2]
[363744199,1748857853802,-623.93,0.00019992,2]
[363744200,1748857853812,-300.0,0.00019994,2]
[363744201,1748857853822,-300.0,0.00019994,2]
[363744202,1748857853832,-300.0,0.00019994,2]
[363744203,1748857853842,-623.93,0.00019994,2]
[363744204,1748857853851,-623.93,0.00019994,2]
[363744205,1748857853861,-623.93,0.00019994,2]
[363744206,1748857853870,-623.93,0.00019994,2]
[363744207,1748857853880,-290.90481786,0.00019995,2]
[363744208,1748857853889,-991661.37965303,0.00019995,2]
[363744209,1748857853900,-151.0,0.00019995,2]
[363744210,1748857853909,-151.0,0.00019995,2]
[363744211,1748857853918,-152.785274,0.00019995,2]
[363744212,1748857853928,-151.0,0.00019995,2]
[363744213,1748857853938,-151.0,0.00019995,2]
[363744214,1748857853947,-151.0,0.00019995,2]
[363744215,1748857853956,-151.0,0.00019995,2]
[363744216,1748857853966,-151.0,0.00019995,2]
[363744217,1748857853976,-589.346771,0.00019995,2]
[363744218,1748857853986,-589.346771,0.00019995,2]
[363744219,1748857853999,-170.779223,0.00019995,2]
[363744220,1748857854009,-170.779223,0.00019995,2]
[363744221,1748857854019,-151.0,0.00019995,2]
[363744222,1748857854029,-151.0,0.00019995,2]
[363744223,1748857854039,-168.505625,0.00019995,2]
[363744224,1748857854050,-168.505625,0.00019995,2]
[363744225,1748857854060,-161.465619,0.00019995,2]
[363744226,1748857854069,-158.725501,0.00019995,2]
[363744227,1748857854079,-151.0,0.00019995,2]
[363744228,1748857854090,-151.0,0.00019995,2]
[363744229,1748857854101,-151.0,0.00019995,2]
[363744230,1748857854111,-151.0,0.00019995,2]
[363744231,1748857854122,-194.264785,0.00019995,2]
[363744232,1748857854133,-194.264785,0.00019995,2]
[363744233,1748857854144,-151.0,0.00019995,2]
[363744234,1748857854158,-151.0,0.00019995,2]
[363744235,1748857854168,-151.0,0.00019995,2]
[363744236,1748857854179,-151.0,0.00019995,2]
[363744237,1748857854191,-151.0,0.00019995,2]
[363744238,1748857854201,-698.166167,0.00019995,2]
[363744239,1748857854211,-698.166167,0.00019995,2]
[363744240,1748857854224,-151.0,0.00019995,2]
[363744241,1748857854234,-604.124976,0.00019995,2]
[363744242,1748857854244,-604.124976,0.00019995,2]
[363744243,1748857854256,-262.912217,0.00019995,2]
[363744244,1748857854267,-882.587091,0.00019995,2]
[363744245,1748857854277,-262.912217,0.00019995,2]
[363744246,1748857854289,-882.587091,0.00019995,2]
[363744247,1748857854299,-220.912477,0.00019995,2]
[363744248,1748857854310,-1500.0,0.00019995,7]
[363744249,1748857854320,-1500.0,0.00019995,7]
[363744250,1748857854329,-220.912477,0.00019995,2]
[363744251,1748857854340,-1500.0,0.00019995,7]
[363744252,1748857854350,-1500.0,0.00019995,7]
[363744253,1748857854360,-1500.0,0.00019995,7]
[363744254,1748857854370,-1500.0,0.00019995,7]
[363744255,1748857854380,-1500.0,0.00019995,7]
[363744256,1748857854390,-1500.0,0.00019995,7]
[363744257,1748857854400,-1500.0,0.00019995,7]
[363744258,1748857854411,-1500.0,0.00019995,7]
[363744259,1748857854422,-1500.0,0.00019995,7]
[363744260,1748857854431,-1500.0,0.00019995,7]
[363744261,1748857854442,-1500.0,0.00019995,7]
[363744262,1748857854452,-1500.0,0.00019995,7]
[363744263,1748857854462,-1500.0,0.00019995,7]
[363744264,1748857854475,-154.38372,0.00019995,2]
[363744265,1748857854485,-1500.0,0.00019995,7]
[363744266,1748857854495,-1500.0,0.00019995,7]
[363744267,1748857854505,-1500.0,0.00019995,7]
[363744268,1748857854514,-1500.0,0.00019995,7]
[363744269,1748857854524,-1500.0,0.00019995,7]
[363744270,1748857854535,-1500.0,0.00019995,7]
[363744271,1748857854545,-1500.0,0.00019995,7]
[363744272,1748857854556,-516.69753,0.00019995,7]
[363744273,1748857854566,-280.864726,0.00019995,2]
[363744274,1748857854577,-280.864726,0.00019995,2]
[363744275,1748857854587,-151.0,0.00019995,2]
[363744276,1748857854597,-151.0,0.00019995,2]
[363744277,1748857854607,-181.53137,0.00019995,2]
[363744278,1748857854616,-181.53137,0.00019995,2]
[363744279,1748857854627,-151.0,0.00019995,2]
[363744280,1748857854637,-449.419583,0.00019995,2]
[363744281,1748857854647,-449.419583,0.00019995,2]
[363744282,1748857854657,-151.0,0.00019995,2]
[363744283,1748857854667,-151.0,0.00019995,2]
[363744284,1748857854678,-151.0,0.00019995,2]
[363744285,1748857854687,-151.0,0.00019995,2]
[363744286,1748857854697,-277.670227,0.00019995,2]
[363744287,1748857854707,-151.0,0.00019995,2]
[363744288,1748857854717,-396.269665,0.00019995,2]
[363744289,1748857854727,-396.269665,0.00019995,2]
[363744290,1748857854737,-1765.120832,0.00019995,2]
[363744291,1748857854747,-1765.120832,0.00019995,2]
[363744292,1748857854758,-151.0,0.00019995,2]
[363744293,1748857854768,-2562.247951,0.00019995,2]
[363744294,1748857854778,-2562.247951,0.00019995,2]
[363744295,1748857854788,-151.0,0.00019995,2]
[363744296,1748857854799,-151.0,0.00019995,2]
[363744297,1748857854809,-151.0,0.00019995,2]
[363744298,1748857854820,-151.0,0.00019995,2]
[363744299,1748857854830,-151.0,0.00019995,2]
[363744300,1748857854840,-39759.93565429,0.00019996,2]
[363744301,1748857855338,-420.0,0.00019178,2]
[363744302,1748857855348,-382.52041477,0.00019178,2]
[363744303,1748857855358,-420.0,0.00019178,2]
[363744304,1748857855367,-340.7750785,0.00019315,2]
[363744305,1748857855378,-79.2249215,0.00019315,2]
[363744306,1748857855388,-932.83,0.00019726,2]
[363744307,1748857855399,-908.143,0.00019809,2]
[363744308,1748857855408,-932.83,0.00019863,2]
[363744309,1748857855418,-37042.24260061,0.00019996,2]
[363744310,1748857855428,-500.0,0.00019998,2]
[363744311,1748857855437,-512.65409383,0.00019998,2]
[363744312,1748857855447,-300.0,0.00019998,2]
[363744313,1748857855456,-300.0,0.00019998,2]
[363744314,1748857855466,-300.0,0.00019998,2]
[363744315,1748857855476,-623.93,0.00019998,2]
[363744316,1748857855485,-300.0,0.00019999,2]
[363744317,1748857855495,-321.28315356,0.00019999,2]
[363744318,1748857855504,-300.0,0.00019999,2]
[363744319,1748857855514,-150.0,0.00019999,2]
[363744320,1748857855524,-1000.0,0.00019999,2]
[363744321,1748857855533,-1000.0,0.00019999,2]
[363744322,1748857855544,-138464.14453964,0.00019999,7]
[363744323,1748857855554,-151.0,0.00019999,2]
[363744324,1748857855564,-15141.90301776,0.00019999,2]
[363744325,1748857855573,-151.0,0.00019999,2]
[363744326,1748857855583,-226.754213,0.00019999,7]
[363744327,1748857855593,-151.0,0.00019999,2]
[363744328,1748857855603,-151.0,0.00019999,2]
[363744329,1748857855612,-268.015965,0.00019999,2]
[363744330,1748857855622,-151.0,0.00019999,2]
[363744331,1748857855631,-151.0,0.00019999,2]
[363744332,1748857855641,-589.346771,0.00019999,2]
[363744333,1748857855651,-589.346771,0.00019999,2]
[363744334,1748857855660,-151.0,0.00019999,2]
[363744335,1748857855670,-2560.37082522,0.00019999,2]
[363744336,1748857855679,-151.0,0.00019999,2]
[363744337,1748857855689,-151.0,0.00019999,2]
[363744338,1748857855699,-151.0,0.00019999,2]
[363744339,1748857855709,-151.0,0.00019999,2]
[363744340,1748857855719,-151.0,0.00019999,2]
[363744341,1748857855728,-151.0,0.00019999,2]
[363744342,1748857855739,-604.124976,0.00019999,2]
[363744343,1748857855748,-604.124976,0.00019999,2]
[363744344,1748857855758,-262.912217,0.00019999,2]
[363744345,1748857855768,-262.912217,0.00019999,2]
[363744346,1748857855778,-220.912477,0.00019999,2]
[363744347,1748857855788,-220.912477,0.00019999,2]
[363744348,1748857855798,-280.864726,0.00019999,2]
[363744349,1748857855808,-280.864726,0.00019999,2]
[363744350,1748857855817,-151.0,0.00019999,2]
[363744351,1748857855827,-151.0,0.00019999,2]
[363744352,1748857855836,-181.53137,0.00019999,2]
[363744353,1748857855846,-181.53137,0.00019999,2]
[363744354,1748857855856,-449.419583,0.00019999,2]
[363744355,1748857855866,-449.419583,0.00019999,2]
[363744356,1748857855875,-151.0,0.00019999,2]
[363744357,1748857855884,-151.0,0.00019999,2]
[363744358,1748857855894,-151.0,0.00019999,2]
[363744359,1748857855903,-151.0,0.00019999,2]
[363744360,1748857855914,-396.269665,0.00019999,2]
[363744361,1748857855924,-396.269665,0.00019999,2]
[363744362,1748857855935,-1765.120832,0.00019999,2]
[363744363,1748857855944,-1765.120832,0.00019999,2]
[363744364,1748857855954,-151.0,0.00019999,2]
[363744365,1748857855963,-2562.247951,0.00019999,2]
[363744366,1748857855974,-2562.247951,0.00019999,2]
[363744367,1748857855984,-623.93,0.00019999,2]
[363744368,1748857855994,-623.93,0.00019999,2]
[363744369,1748857856004,-623.93,0.00019999,2]
[363744370,1748857856014,-623.93,0.00019999,2]
[363744371,1748857856023,-623.93,0.00019999,2]
[363744372,1748857856033,-623.95369321,0.00019999,2]
[363744373,1748857856043,-273.83179,0.00019999,2]
[363744374,1748857856053,-151.0,0.00019999,2]
[363744375,1748857856063,-151.0,0.00019999,2]
[363744376,1748857856072,-151.0,0.00019999,2]
[363744377,1748857856082,-372.05229456,0.0002,2]
[363744378,1748857856091,-1985.0,0.0002,2]
[363744379,1748857856101,-500.0,0.0002,2]
[363744380,1748857856111,-500.0,0.0002,2]
[363744381,1748857856121,-500.0,0.0002,2]
[363744382,1748857856131,-500.0,0.0002,2]
[363744383,1748857856141,-500.0,0.0002,2]
[363744384,1748857856155,-500.0,0.0002,2]
[363744385,1748857856164,-500.0,0.0002,2]
[363744386,1748857856174,-500.0,0.0002,2]
[363744387,1748857856184,-777047.70668148,0.0002,2]
[363744388,1748857858056,-11964.10914325,0.0002,2]
[363744389,1748857858338,-420.0,0.00019178,2]
[363744390,1748857858348,-3045.51434896,0.0002,2]
[363744391,1748857858360,-991.76442867,0.0002,2]
[363744392,1748857858399,-266834.21489222,0.0002,2]
[363744393,1748857858419,-26039.09640075,0.0002,2]
[363744394,1748857858430,-280.22665544,0.0002,2]
[363744395,1748857858761,-348.97891052,0.00019178,2]
[363744396,1748857858771,-420.0,0.00019178,2]
[363744397,1748857858782,-420.0,0.00019178,2]
[363744398,1748857858792,-420.0,0.00019315,2]
[363744399,1748857858801,-420.0,0.00019315,2]
[363744400,1748857858811,-420.0,0.00019452,2]
[363744401,1748857858822,-1202.0,0.00019579,2]
[363744402,1748857858832,-276.83,0.00019589,2]
[363744403,1748857858842,-7905.06356764,0.0002,2]
[363744404,1748857859044,-3138.0,0.0002,2]
[363744405,1748857859057,-939.56526393,0.0002,2]
[363744406,1748857993055,-171.51263129,0.00019166,2]
[363744408,1748858082509,259.21,0.00013699,2]
[363744410,1748858110772,554.85,0.00016621,2]
[363744411,1748858110975,554.85,0.00018885,2]
[363744412,1748858186207,-209.203029,0.000191,6]
[363744413,1748858216709,209.0,0.000178,5]
[363744414,1748858226241,487.8373346,0.00023,30]
[363744415,1748858227211,230.2,0.00018298,2]
[363744456,1748858531527,204.0,0.00018825,2]
[363744457,1748858576348,608.32,0.00018811,2]
[363744458,1748858608718,-483.89494,0.00019001,2]
[363744459,1748858608741,-400.0,0.00019077,2]
[363744460,1748858608763,-500.0,0.00019077,2]
[363744461,1748858608786,-558.14602101,0.00019078,2]
[363744462,1748858608809,-400.0,0.00019087,2]
[363744463,1748858608831,-690.796971,0.000191,6]
[363744464,1748858608853,-400.0,0.000191,6]
[363744465,1748858608877,-1200.0,0.00019149,2]
[363744466,1748858608900,-300.0,0.00019149,2]
[363744467,1748858608923,-167.74394959,0.0001915,2]